bitfinex-derivatives/quotes_ETHF0:USTF0_20260119
["timestamp","ask_amount","ask_price","bid_price","bid_amount"]
[1768861127769,0.88438152,3210.4,3209.3,1.29561368]
[1768861127971,1.29561368,3210.7,3209.3,1.29561368]
[1768861128173,1.24060073,3210.6,3209.3,1.29561368]
[1768861128475,0.88442902,3210.5,3209.4,1.29561368]
[1768861128676,0.88442902,3210.5,3209.2,5.5792833]
[1768861128677,0.88442902,3210.4,3209.2,0.0032833]
[1768861128875,3.34206881,3210.7,3209.4,1.29561368]
[1768861129076,1.24066871,3210.6,3209.4,1.29561368]
[1768861129276,0.88447751,3210.5,3209.4,1.29561368]
[1768861129475,0.88447751,3210.4,3209.4,1.29561368]
[1768861129689,3.34206881,3210.7,3209.4,1.29561368]
[1768861129879,1.240734,3210.6,3209.4,1.29561368]
[1768861130074,0.88452404,3210.5,3209.4,1.29561368]
[1768861130275,0.88452404,3210.4,3209.4,1.29561368]
[1768861130475,4.63768249,3210.7,3209.4,1.29561368]
[1768861130688,4.63768249,3210.7,3209.3,1.29561368]
[1768861130689,4.58285991,3210.6,3209.3,1.29561368]
[1768861130979,4.58285991,3210.6,3209.5,1.29561368]
[1768861130980,0.88457368,3210.5,3209.5,1.29561368]
[1768861131179,0.88457368,3210.4,3209.5,1.29561368]
[1768861131381,3.34206881,3210.6,3209.5,1.29561368]
[1768861131582,0.88462564,3210.5,3209.5,1.29561368]
[1768861131782,3.34206881,3210.6,3209.5,1.29561368]
[1768861131783,0.88462564,3210.4,3209.5,1.29561368]
[1768861131974,3.34206881,3210.6,3209.5,1.29561368]
[1768861132175,0.88462604,3210.5,3209.5,1.29561368]
[1768861132373,0.88462604,3210.4,3209.5,1.29561368]
[1768861132580,3.34206881,3210.6,3209.5,1.29561368]
[1768861132776,0.88468858,3210.5,3209.5,1.29561368]
[1768861132971,0.88468858,3210.4,3209.5,1.29561368]
[1768861133176,1.27078839,3210.8,3209.7,1.29561368]
[1768861133376,1.24096658,3210.7,3209.7,1.29561368]
[1768861133578,1.27078839,3210.8,3209.7,1.29561368]
[1768861133579,1.24096658,3210.6,3209.7,1.29561368]
[1768861133778,0.88469016,3210.5,3209.7,1.29561368]
[1768861133983,0.88469016,3210.4,3209.7,1.29561368]
[1768861134281,1.27078839,3210.8,3209.7,1.29561368]
[1768861134485,1.24115671,3210.7,3209.7,1.29561368]
[1768861134685,1.24115671,3210.6,3209.7,1.29561368]
[1768861134984,0.88482567,3210.5,3209.7,1.29561368]
[1768861135184,0.88482567,3210.4,3209.7,1.29561368]
[1768861135374,1.27078839,3210.8,3209.7,1.29561368]
[1768861135571,1.24126043,3210.7,3209.7,1.29561368]
[1768861135775,1.24126043,3210.6,3209.7,1.29561368]
[1768861136083,0.88489962,3210.5,3209.7,1.29561368]
[1768861136277,0.88489962,3210.4,3209.7,1.29561368]
[1768861136478,0.15582,3210.8,3209.7,1.29561368]
[1768861136674,1.24136743,3210.7,3209.7,1.29561368]
[1768861136874,1.24136743,3210.6,3209.7,1.29561368]
[1768861137076,0.8849755,3210.5,3209.7,1.29561368]
[1768861137269,0.8849755,3210.4,3209.7,1.29561368]
[1768861137474,1.27078839,3210.8,3209.7,1.29561368]
[1768861137683,1.27078839,3210.8,3209.3,3.4386824]
[1768861137684,1.24148979,3210.7,3209.9,1.29561368]
[1768861137870,1.24148979,3210.6,3209.8,1.29561368]
[1768861138075,0.88506314,3210.5,3209.8,1.29561368]
[1768861138271,0.88506314,3210.4,3209.8,1.29561368]
[1768861138485,1.27078839,3210.8,3209.8,1.29561368]
[1768861138685,1.24160993,3210.7,3209.8,1.29561368]
[1768861138878,1.24160993,3210.6,3209.8,1.29561368]
[1768861139087,0.88514865,3210.5,3209.8,1.29561368]
[1768861139282,0.88514865,3210.4,3209.8,1.29561368]
[1768861139479,1.11496839,3211.0,3210.1,1.29561368]
[1768861139681,0.35652185,3210.9,3210.1,1.29561368]
[1768861139878,1.11847724,3211.1,3210.1,1.29561368]
[1768861140075,0.35651445,3211.0,3210.1,1.29561368]
[1768861140281,0.35651445,3211.0,3209.6,3.4386824]
[1768861140282,0.00350885,3211.1,3210.3,1.29561368]
[1768861140479,0.35652626,3211.0,3210.3,1.29561368]
[1768861140681,0.00350885,3211.1,3210.3,1.29561368]
[1768861140881,0.35652624,3211.0,3210.3,1.29561368]
[1768861141082,0.00350885,3211.1,3210.2,1.29561368]
[1768861141279,0.35652693,3211.0,3210.2,1.29561368]
[1768861141474,0.00350885,3211.1,3210.2,1.29561368]
[1768861141687,0.35651652,3211.0,3210.2,1.29561368]
[1768861141986,0.00350885,3211.1,3210.2,1.29561368]
[1768861142187,0.35651614,3211.0,3210.2,1.29561368]
[1768861142387,0.00350885,3211.1,3210.2,1.29561368]
[1768861143086,0.00350885,3211.1,3209.7,0.5]
[1768861143087,0.00350885,3211.1,3209.8,3.4386824]
[1768861143295,0.00350885,3211.1,3210.0,1.29561368]
[1768861146089,0.00350885,3211.1,3209.7,0.5]
[1768861146090,1.29561368,3210.8,3209.7,0.5]
[1768861146592,1.29561368,3210.4,3209.7,0.5]
[1768861146780,0.35639559,3210.3,3209.2,0.0032833]
[1768861146985,4.54348375,3210.5,3209.2,0.0032833]
[1768861147186,3.42851536,3210.3,3209.2,0.0032833]
[1768861147491,0.35630139,3210.2,3209.2,0.0032833]
[1768861147693,3.42851536,3210.3,3209.2,0.0032833]
[1768861147899,0.35629993,3210.2,3209.2,0.0032833]
[1768861148099,3.42851536,3210.3,3209.2,0.0032833]
[1768861148291,0.35629965,3210.2,3209.2,0.0032833]
[1768861148594,3.42851536,3210.3,3209.2,0.0032833]
[1768861148794,0.3562314,3210.2,3209.2,0.0032833]
[1768861148998,3.42851536,3210.3,3209.2,0.0032833]
[1768861149197,0.35623142,3210.2,3209.2,0.0032833]
[1768861149495,3.42851536,3210.3,3209.2,0.0032833]
[1768861149698,0.35617889,3210.2,3209.2,0.0032833]
[1768861149899,3.42851536,3210.3,3209.2,0.0032833]
[1768861150198,0.35617881,3210.2,3209.2,0.0032833]
[1768861150397,3.42851536,3210.3,3209.2,0.0032833]
[1768861150597,3.42851536,3210.2,3207.9,6.5586824]
[1768861150802,3.42851536,3210.1,3208.8,1.29561368]
[1768861150996,3.42851536,3210.1,3208.8,1.29889698]
[1768861151300,3.42851536,3210.1,3208.9,1.29889698]
[1768861151502,3.42851536,3210.1,3208.7,1.29889698]
[1768861151701,3.42851536,3210.1,3208.7,0.00218305]
[1768861151999,0.88199165,3210.0,3208.8,1.29889698]
[1768861152203,3.42851536,3210.1,3208.7,0.00218305]
[1768861152400,0.88195113,3210.0,3208.7,0.00218305]
[1768861152693,3.42851536,3210.1,3208.8,1.29889698]
[1768861152894,0.88195231,3210.0,3208.7,0.00218305]
[1768861153090,3.42851536,3210.1,3208.7,0.00218305]
[1768861153393,0.88194882,3210.0,3208.7,0.00218305]
[1768861153597,3.42851536,3210.1,3208.7,0.00218305]
[1768861153898,0.88192671,3210.0,3208.7,0.00218305]
[1768861154098,3.42851536,3210.1,3208.7,0.00218305]
[1768861154291,0.88192743,3210.0,3208.7,0.00218305]
[1768861154491,3.42851536,3210.1,3208.7,0.00218305]
[1768861154694,3.42851536,3209.9,3208.7,0.00218305]
[1768861155789,3.42851536,3209.7,3208.7,0.00218305]
[1768861155993,4.66626388,3209.6,3208.7,0.00218305]
[1768861156200,0.88176622,3209.5,3208.7,0.00218305]
[1768861156488,3.42851536,3209.6,3208.7,0.00218305]
[1768861156687,0.88130928,3209.5,3208.7,0.00218305]
[1768861156899,3.42851536,3209.6,3208.7,0.00218305]
[1768861157099,0.88130926,3209.5,3208.7,0.00218305]
[1768861157401,3.42851536,3209.6,3208.7,0.00218305]
[1768861157604,0.88099528,3209.5,3208.7,0.00218305]
[1768861157802,3.42851536,3209.6,3208.7,0.00218305]
[1768861158003,0.88099528,3209.5,3208.7,0.00218305]
[1768861158299,3.42851536,3209.6,3208.7,0.00218305]
[1768861162409,3.42851536,3209.4,3207.7,40.8]
[1768861162707,0.88007605,3209.3,3207.7,42.09581589]
[1768861162911,0.88007605,3209.2,3207.7,43.39471287]
[1768861163095,3.42851536,3209.3,3207.8,1.29889698]
[1768861163302,1.11496839,3209.7,3207.8,1.29889698]
[1768861163303,3.6183229,3209.2,3207.8,1.30130006]
[1768861163601,3.6183229,3209.2,3207.8,0.00240308]
[1768861163907,3.6183229,3209.2,3207.9,1.29889698]
[1768861164106,3.6183229,3209.2,3208.0,1.29889698]
[1768861164312,3.6183229,3209.2,3207.9,1.29889698]
[1768861164609,3.6183229,3209.2,3207.8,0.00240308]
[1768861164818,3.7742229,3209.2,3207.8,1.30130006]
[1768861166013,3.7742229,3209.2,3207.9,1.29889698]
[1768861166205,3.7742229,3209.2,3207.8,0.00240308]
[1768861166407,3.7742229,3209.2,3207.8,1.30130006]
[1768861167223,3.7742229,3209.2,3207.9,1.29889698]
[1768861167400,3.7742229,3209.2,3207.8,0.00240308]
[1768861167914,3.7742229,3209.2,3207.8,1.30130006]
[1768861168209,3.7742229,3209.2,3207.8,0.00240308]
[1768861168407,3.7742229,3209.2,3207.9,1.29889698]
[1768861170413,3.7742229,3209.2,3207.8,0.00240308]
[1768861170622,3.7742229,3209.2,3207.9,1.29889698]
[1768861171217,3.7742229,3209.2,3208.0,1.29889698]
[1768861171417,3.7742229,3209.2,3207.9,1.29889698]
[1768861171916,3.7742229,3209.2,3208.0,1.29889698]
[1768861172217,3.7742229,3209.2,3207.9,1.29889698]
[1768861172610,3.7742229,3209.2,3208.0,1.29889698]
[1768861172921,3.7742229,3209.2,3207.9,1.29889698]
[1768861173419,3.7742229,3209.2,3208.0,1.29889698]
[1768861173621,3.7742229,3209.2,3207.9,1.29889698]
[1768861174408,0.87888635,3209.1,3208.0,1.29889698]
[1768861174613,3.7742229,3209.2,3207.9,1.29889698]
[1768861174918,0.87906688,3209.1,3207.9,1.29889698]
[1768861175118,3.7742229,3209.2,3208.0,1.29889698]
[1768861175317,0.87911418,3209.1,3208.0,1.29889698]
[1768861175518,0.87911418,3209.0,3208.0,1.29889698]
[1768861175722,3.7742229,3209.2,3207.8,0.00240308]
[1768861175914,0.8795927,3209.1,3207.9,1.29889698]
[1768861176217,0.8795927,3209.0,3207.8,0.00240308]
[1768861176517,0.1559,3209.1,3207.8,0.00240308]
[1768861176721,4.49824291,3209.0,3207.9,1.29889698]
[1768861176906,3.6183229,3209.0,3208.1,1.29889698]
[1768861177312,3.6183229,3209.0,3208.2,1.29889698]
[1768861177520,3.6183229,3209.0,3207.8,0.00240308]
[1768861177707,3.6183229,3209.0,3208.1,1.29889698]
[1768861178111,0.88000206,3208.9,3208.1,1.29889698]
[1768861178310,3.6183229,3209.0,3208.2,1.29889698]
[1768861178510,0.88010574,3208.9,3208.1,1.29889698]
[1768861178721,3.6183229,3209.0,3208.1,1.29889698]
[1768861178920,0.88010593,3208.9,3208.2,1.29889698]
[1768861179121,3.6183229,3209.0,3208.1,1.29889698]
[1768861179421,0.88014239,3208.9,3208.1,1.29889698]
[1768861179723,3.6183229,3209.0,3208.2,1.29889698]
[1768861179923,0.88027946,3208.9,3208.1,1.29889698]
[1768861180222,3.6183229,3209.0,3208.1,1.29889698]
[1768861180416,0.88045431,3208.9,3208.2,1.29889698]
[1768861180618,3.6183229,3209.0,3208.1,1.29889698]
[1768861180914,0.88047921,3208.9,3208.1,1.29889698]
[1768861181117,3.6183229,3209.0,3208.2,1.29889698]
[1768861181307,0.88049023,3208.9,3208.1,1.29889698]
[1768861181512,3.6183229,3209.0,3208.1,1.29889698]
[1768861181712,0.88071597,3208.9,3208.2,1.29889698]
[1768861181921,3.6183229,3209.0,3208.1,1.29889698]
[1768861182118,0.88071593,3208.9,3208.1,1.29889698]
[1768861182321,0.88097822,3208.8,3207.8,0.00240308]
[1768861182517,0.00340168,3208.8,3208.1,1.29889698]
[1768861182725,0.00340168,3208.8,3208.2,1.29889698]
[1768861183223,0.00340168,3208.8,3208.4,1.29889698]
[1768861183526,0.00340168,3208.8,3208.2,1.29889698]
[1768861184010,0.00340168,3208.8,3208.4,1.29889698]
[1768861184211,3.38039476,3208.6,3207.8,1.30130006]
[1768861184410,0.88138836,3208.5,3208.0,1.29889698]
[1768861184625,0.15592,3208.7,3207.9,1.29889698]
[1768861184824,0.88167421,3208.6,3207.9,1.29889698]
[1768861185123,0.88167421,3208.5,3208.0,1.29889698]
[1768861185317,0.15592,3208.7,3207.9,1.29889698]
[1768861185318,0.88203251,3208.4,3207.9,1.29889698]
[1768861185516,0.15592,3208.7,3207.9,1.29889698]
[1768861185717,0.88203313,3208.6,3208.0,1.29889698]
[1768861185917,0.88203313,3208.5,3207.9,1.29889698]
[1768861186214,0.88203313,3208.4,3207.9,1.29889698]
[1768861186413,0.15592,3208.7,3208.0,1.29889698]
[1768861186617,0.88210841,3208.6,3207.9,1.29889698]
[1768861186818,0.88210841,3208.5,3208.0,1.29889698]
[1768861187015,0.88210841,3208.4,3208.0,1.29889698]
[1768861187221,0.15592,3208.7,3208.1,1.29889698]
[1768861187521,0.88217377,3208.6,3208.0,1.29889698]
[1768861187827,0.88217377,3208.5,3208.0,1.29889698]
[1768861188025,0.88217377,3208.4,3208.1,1.29889698]
[1768861188326,0.15592,3208.7,3208.0,1.29889698]
[1768861188525,0.88232272,3208.6,3208.0,1.29889698]
[1768861188827,0.88232272,3208.5,3208.1,1.29889698]
[1768861189128,0.88232272,3208.4,3208.0,1.29889698]
[1768861189330,0.15592,3208.7,3208.0,1.29889698]
[1768861189525,1.23901752,3208.6,3208.1,1.29889698]
[1768861189729,0.88248125,3208.5,3208.0,1.29889698]
[1768861189926,0.88248125,3208.4,3208.0,1.29889698]
[1768861190126,0.15592,3208.7,3208.1,1.29889698]
[1768861190429,0.35653469,3208.6,3208.0,1.29889698]
[1768861190629,0.88247738,3208.5,3208.0,1.29889698]
[1768861190829,0.88247738,3208.4,3208.1,1.29889698]
[1768861191031,0.88266517,3208.3,3207.9,0.63544943]
[1768861191230,1.27088839,3208.7,3208.0,0.63544943]
[1768861191531,1.23953304,3208.6,3208.0,0.63544943]
[1768861191830,0.88286644,3208.5,3208.1,0.63544943]
[1768861192028,0.88286644,3208.4,3208.2,0.63544943]
[1768861192223,0.00340168,3208.8,3207.8,0.00240308]
[1768861192424,1.23977449,3208.7,3207.8,0.00240308]
[1768861192731,0.88298268,3208.6,3208.2,0.63544943]
[1768861192929,0.00340168,3208.8,3208.2,0.63544943]
[1768861193132,0.88304273,3208.7,3208.5,0.63544943]
[1768861193329,0.88304273,3208.6,3208.2,0.63544943]
[1768861193628,0.00340168,3208.8,3207.8,0.00240308]
[1768861193829,0.88308346,3208.7,3207.8,0.00240308]
[1768861194137,0.88308346,3208.6,3207.8,0.00240308]
[1768861194322,0.00340168,3208.8,3208.3,0.63544943]
[1768861194525,0.88312934,3208.7,3208.3,0.63544943]
[1768861194729,0.88312934,3208.6,3208.5,0.63544943]
[1768861194930,0.88312934,3208.6,3208.3,0.63544943]
[1768861195233,0.00340168,3208.8,3208.4,0.63544943]
[1768861195437,0.88314448,3208.7,3208.3,0.63544943]
[1768861195638,0.88314448,3208.6,3208.3,0.63544943]
[1768861195832,0.00340168,3208.8,3207.8,0.00240308]
[1768861196033,0.88314323,3208.7,3207.8,0.00240308]
[1768861196331,0.88314323,3208.6,3207.8,0.00240308]
[1768861196531,0.00340168,3208.8,3207.8,0.00240308]
[1768861196729,0.88315635,3208.7,3207.8,0.00240308]
[1768861196929,0.88315635,3208.6,3207.8,0.00240308]
[1768861197241,0.00340168,3208.8,3207.8,0.00240308]
[1768861197536,0.88311699,3208.7,3207.8,0.00240308]
[1768861197726,0.88311699,3208.6,3207.8,0.00240308]
[1768861197927,0.00340168,3208.8,3207.8,0.00240308]
[1768861198136,0.88315005,3208.7,3207.8,0.00240308]
[1768861198327,0.88315005,3208.6,3207.8,0.00240308]
[1768861198526,0.00340168,3208.8,3207.8,0.00240308]
[1768861198727,0.88316813,3208.7,3207.8,0.00240308]
[1768861199033,0.88316813,3208.6,3207.8,0.00240308]
[1768861199233,0.00340168,3208.8,3207.8,0.00240308]
[1768861199432,0.88318589,3208.7,3207.8,0.00240308]
[1768861199631,0.88318589,3208.6,3207.8,0.00240308]
[1768861199934,0.00340168,3208.8,3207.8,0.00240308]
[1768861200122,0.88812849,3208.7,3207.8,0.00240308]
[1768861200327,0.88812849,3208.6,3207.8,0.00240308]
[1768861200527,0.00340168,3208.8,3207.8,0.00240308]
[1768861200730,0.88812731,3208.7,3207.8,0.00240308]
[1768861200934,0.88812731,3208.6,3207.8,0.00240308]
[1768861201128,0.00340168,3208.8,3207.8,0.00240308]
[1768861201328,0.88812514,3208.7,3207.8,0.00240308]
[1768861201530,0.88812514,3208.6,3207.8,0.00240308]
[1768861201730,3.48450129,3208.4,3207.8,0.00240308]
[1768861201939,4.37255975,3208.3,3207.2,5.523]
[1768861202135,3.48450129,3208.3,3206.5,3.119]
[1768861202330,3.48450129,3208.1,3206.6,5.523]
[1768861202529,0.88778326,3208.0,3206.6,5.523]
[1768861202730,3.48450129,3208.1,3206.6,5.523]
[1768861202931,0.88778445,3208.0,3206.6,5.523]
[1768861203126,3.48450129,3208.1,3206.6,5.52688561]
[1768861203334,0.88778683,3208.0,3206.6,5.52688561]
[1768861203532,3.48450129,3208.1,3206.6,5.52688561]
[1768861203733,4.37208075,3208.0,3206.6,5.52688561]
[1768861203937,3.48450129,3208.0,3206.6,5.52688561]
[1768861205641,4.59946968,3208.4,3206.7,3.60341456]
[1768861205835,1.24371257,3208.3,3207.0,4.89923045]
[1768861206030,0.88719716,3208.2,3207.4,1.29581589]
[1768861206233,1.11496839,3208.6,3207.4,1.29581589]
[1768861206442,0.88716673,3208.5,3207.5,9.12841456]
[1768861206640,0.00340168,3208.8,3207.5,9.12841456]
[1768861206839,1.24711812,3208.7,3207.5,9.12841456]
[1768861207139,0.89056798,3208.6,3207.5,9.12841456]
[1768861207444,0.89056798,3208.6,3207.0,3.60341456]
[1768861207445,3.84101881,3208.5,3207.0,3.60341456]
[1768861207745,0.89056798,3208.4,3207.0,3.60341456]
[1768861207941,0.89056798,3208.3,3207.0,3.60341456]
[1768861208144,3.48450129,3208.5,3207.0,3.60341456]
[1768861208349,0.8905028,3208.4,3207.0,3.60341456]
[1768861208644,0.8905028,3208.3,3207.0,3.60341456]
[1768861208844,3.48450129,3208.5,3207.0,3.60341456]
[1768861209047,0.89050986,3208.4,3207.0,3.60341456]
[1768861209243,0.89050986,3208.3,3207.0,3.60341456]
[1768861209442,3.48450129,3208.5,3207.0,3.60341456]
[1768861209646,0.89052662,3208.4,3207.0,3.60341456]
[1768861209943,0.89052662,3208.3,3207.0,3.60341456]
[1768861210143,3.48450129,3208.5,3207.0,3.60341456]
[1768861210447,0.89053285,3208.4,3207.0,3.60341456]
[1768861210751,0.89053285,3208.3,3207.1,5.526]
[1768861210940,0.89053285,3208.2,3207.1,5.526]
[1768861211243,4.37503414,3208.1,3206.7,5.527]
[1768861211434,3.48450129,3208.1,3206.7,5.527]
[1768861212839,3.48450129,3208.1,3206.8,1.29736996]
[1768861214552,3.48450129,3208.1,3207.0,1.29736996]
[1768861221953,0.15594,3208.4,3207.2,1.29736996]
[1768861222252,0.88981238,3208.3,3207.5,1.29736996]
[1768861222443,0.88981238,3208.2,3207.5,1.29736996]
[1768861222643,0.88981238,3208.1,3207.5,1.29736996]
[1768861222846,1.11496839,3208.5,3207.3,1.29736996]
[1768861223046,1.24613174,3208.4,3207.3,1.29736996]
[1768861223247,2.96008879,3208.7,3207.3,1.29736996]
[1768861223248,0.88988161,3208.3,3207.3,1.29736996]
[1768861223448,0.88988161,3208.2,3207.3,1.29736996]
[1768861223651,0.88988161,3208.1,3207.3,1.29736996]
[1768861223853,1.11496839,3208.5,3207.3,1.29736996]
[1768861224055,1.24627732,3208.4,3207.1,1.29736996]
[1768861224254,0.88998643,3208.3,3207.0,3.60341456]
[1768861224450,0.88998643,3208.2,3207.3,1.29736996]
[1768861224656,0.00340168,3208.8,3207.8,1.29736996]
[1768861224849,1.24651442,3208.7,3207.8,1.29736996]
[1768861225049,1.24651442,3208.6,3207.8,1.29736996]
[1768861225249,0.89015643,3208.5,3207.8,1.29736996]
[1768861225449,0.89015643,3208.4,3207.8,1.29736996]
[1768861225654,0.00340168,3208.8,3207.8,1.29736996]
[1768861225841,0.88921789,3208.7,3207.8,1.29736996]
[1768861226046,0.88921789,3208.6,3207.8,1.29736996]
[1768861226244,0.88921789,3208.5,3207.8,1.29736996]
[1768861226453,0.00340168,3208.8,3207.8,1.29736996]
[1768861226757,0.88928202,3208.7,3207.8,1.29736996]
[1768861226956,0.88928202,3208.6,3207.8,1.29736996]
[1768861227155,0.88928202,3208.5,3207.8,1.29736996]
[1768861227357,0.00340168,3208.8,3207.8,1.29736996]
[1768861227655,0.89113266,3208.7,3207.8,1.29736996]
[1768861227856,0.89113266,3208.6,3207.8,1.29736996]
[1768861228059,0.89113266,3208.5,3207.8,1.29736996]
[1768861228252,0.00340168,3208.8,3207.8,1.29736996]
[1768861228453,0.89112703,3208.7,3207.8,1.29736996]
[1768861228655,0.89112703,3208.6,3207.8,1.29736996]
[1768861228855,0.89112703,3208.5,3207.8,1.29736996]
[1768861229160,0.00340168,3208.8,3207.8,1.29736996]
[1768861229360,0.8908868,3208.7,3207.8,1.29736996]
[1768861229560,0.8908868,3208.6,3207.8,1.29736996]
[1768861229758,0.8908868,3208.5,3207.8,1.29736996]
[1768861229953,0.00340168,3208.8,3207.8,1.29736996]
[1768861230259,0.88840559,3208.7,3207.8,1.29736996]
[1768861230460,0.00340168,3208.8,3207.8,1.29736996]
[1768861230461,0.88840559,3208.6,3207.8,1.29736996]
[1768861230660,0.88840559,3208.5,3207.8,1.29736996]
[1768861230861,0.00340168,3208.8,3207.8,1.29736996]
[1768861231160,1.24480485,3208.7,3207.8,1.29736996]
[1768861231363,0.88836903,3208.6,3207.8,1.29736996]
[1768861231563,0.88836903,3208.5,3207.8,1.29736996]
[1768861231754,0.00340168,3208.8,3207.8,1.29736996]
[1768861231956,1.24483476,3208.7,3207.8,1.29736996]
[1768861232263,0.88840519,3208.6,3207.8,1.29736996]
[1768861232457,0.88840519,3208.5,3207.8,1.29736996]
[1768861232764,0.00340168,3208.8,3207.8,1.29736996]
[1768861232957,1.24469676,3208.7,3207.8,1.29736996]
[1768861233156,0.8883035,3208.6,3207.8,1.29736996]
[1768861233358,0.8883035,3208.5,3207.8,1.29736996]
[1768861233660,0.00340168,3208.8,3207.8,1.29736996]
[1768861233963,0.88826625,3208.7,3207.8,1.29736996]
[1768861234154,0.88826625,3208.6,3207.8,1.29736996]
[1768861234355,0.88826625,3208.5,3207.8,1.29736996]
[1768861234659,0.00340168,3208.8,3207.8,1.29736996]
[1768861234864,1.24464099,3208.7,3207.8,1.29736996]
[1768861235162,0.88826472,3208.6,3207.8,1.29736996]
[1768861235364,0.88826472,3208.5,3207.8,1.29736996]
[1768861235566,0.00340168,3208.8,3207.8,1.29736996]
[1768861235765,1.24466862,3208.7,3207.8,1.29736996]
[1768861235965,0.88828291,3208.6,3207.8,1.29736996]
[1768861236164,0.88828291,3208.5,3207.8,1.29736996]
[1768861236465,0.00340168,3208.8,3207.8,1.29736996]
[1768861236662,1.24463154,3208.7,3207.8,1.29736996]
[1768861236863,0.88825609,3208.6,3207.8,1.29736996]
[1768861237064,0.88825609,3208.5,3207.8,1.29736996]
[1768861237265,0.00340168,3208.8,3207.8,1.29736996]
[1768861237465,1.24463685,3208.7,3207.8,1.29736996]
[1768861237666,0.88825976,3208.6,3207.8,1.29736996]
[1768861237965,0.88825976,3208.5,3207.8,1.29736996]
[1768861238159,0.00340168,3208.8,3207.8,1.29736996]
[1768861238360,1.24462571,3208.7,3207.8,1.29736996]
[1768861238565,0.88826092,3208.6,3207.8,1.29736996]
[1768861238767,0.88826092,3208.5,3207.8,1.29736996]
[1768861238966,0.00340168,3208.8,3207.8,1.29736996]
[1768861239165,0.88821057,3208.7,3207.8,1.29736996]
[1768861239467,0.88821057,3208.6,3207.8,1.29736996]
[1768861239669,0.88821057,3208.5,3207.8,1.29736996]
[1768861239871,0.00340168,3208.8,3207.8,1.29736996]
[1768861240069,0.88923822,3208.7,3207.8,1.29736996]
[1768861240271,0.88923822,3208.6,3207.8,1.29736996]
[1768861240472,0.00340168,3208.8,3207.8,1.29736996]
[1768861240768,0.88921777,3208.7,3207.8,1.29736996]
[1768861240968,0.88921777,3208.6,3207.8,1.29736996]
[1768861241169,0.00340168,3208.8,3207.8,1.29736996]
[1768861241369,0.88921694,3208.7,3207.8,1.29736996]
[1768861241671,0.88921694,3208.6,3207.8,1.29736996]
[1768861241870,0.00340168,3208.8,3207.8,1.29736996]
[1768861242072,0.88919812,3208.7,3207.8,1.29736996]
[1768861242280,0.88919812,3208.6,3207.8,1.29736996]
[1768861242466,0.00340168,3208.8,3207.8,1.29736996]
[1768861242670,0.88909992,3208.7,3207.8,1.29736996]
[1768861242867,0.88909992,3208.6,3207.8,1.29736996]
[1768861243070,0.00340168,3208.8,3208.0,1.29736996]
[1768861243271,1.27086839,3209.2,3208.4,1.29736996]
[1768861243468,0.35629732,3209.1,3208.4,1.29736996]
[1768861243668,1.27086839,3209.2,3208.4,1.29736996]
[1768861243867,0.3562971,3209.1,3208.4,1.29736996]
[1768861244071,0.3562971,3209.1,3207.4,40.8]
[1768861244072,1.11496839,3209.7,3208.9,1.29736996]
[1768861244270,0.00270453,3209.7,3208.9,1.2996198]
[1768861244464,0.00270453,3209.7,3208.9,0.00224984]
[1768861244664,0.00270453,3209.7,3209.0,1.29736996]
[1768861244981,0.00270453,3209.7,3208.9,0.00224984]
[1768861249179,0.00270453,3209.7,3208.9,1.2996198]
[1768861249575,0.00270453,3209.7,3209.2,1.29736996]
[1768861250276,0.00270453,3209.7,3208.9,0.00224984]
[1768861255282,0.88325627,3209.6,3208.9,0.00224984]
[1768861255486,0.00270453,3209.7,3208.9,0.00224984]
[1768861255675,0.88327022,3209.6,3208.9,0.00224984]
[1768861255983,0.00270453,3209.7,3208.9,0.00224984]
[1768861256182,0.8832678,3209.6,3208.9,0.00224984]
[1768861256383,0.00270453,3209.7,3208.9,0.00224984]
[1768861256571,0.88325149,3209.6,3208.9,0.00224984]
[1768861256772,0.00270453,3209.7,3209.2,1.29736996]
[1768861257074,1.11496839,3210.3,3209.2,1.29736996]
[1768861257271,1.23868586,3210.2,3209.2,1.29736996]
[1768861257478,0.8832627,3210.1,3209.2,1.29736996]
[1768861257678,0.8832627,3210.0,3209.2,1.29736996]
[1768861257879,0.00220376,3210.0,3209.2,1.29736996]
[1768861265394,0.00220376,3210.0,3209.2,4.73945889]
[1768861265599,0.00220376,3210.0,3209.5,1.29736996]
[1768861265793,0.15584,3210.5,3209.5,1.29736996]
[1768861266100,0.88164974,3210.4,3209.5,1.29736996]
[1768861266289,0.88170201,3210.3,3209.2,4.73945889]
[1768861266490,0.15584,3210.5,3209.5,1.29736996]
[1768861266690,0.88170202,3210.4,3209.5,1.29736996]
[1768861266991,0.88170202,3210.3,3209.5,1.29736996]
[1768861267299,0.15852015,3210.5,3209.5,1.29736996]
[1768861268499,0.88197845,3210.4,3209.5,1.29736996]
[1768861268702,0.15852015,3210.5,3209.5,1.29736996]
[1768861269201,0.00268015,3210.5,3209.5,4.73945889]
[1768861269705,0.00268015,3210.5,3209.5,3.44208893]
[1768861271700,0.00268015,3210.5,3209.5,4.73945889]
[1768861272399,0.88299215,3210.4,3209.5,4.73945889]
[1768861272599,0.00268015,3210.5,3209.5,4.73945889]
[1768861272896,0.88299171,3210.4,3209.5,4.73945889]
[1768861273104,0.00268015,3210.5,3209.5,4.73945889]
[1768861273295,0.88299241,3210.4,3209.5,4.73945889]
[1768861273598,0.00268015,3210.5,3209.5,4.73945889]
[1768861273795,0.88320632,3210.4,3209.5,4.73945889]
[1768861274095,0.00268015,3210.5,3209.5,4.73945889]
[1768861274294,0.88320555,3210.4,3209.5,3.44208893]
[1768861274494,0.00268015,3210.5,3209.5,3.44208893]
[1768861274698,0.88316602,3210.4,3209.5,3.44208893]
[1768861274902,0.00268015,3210.5,3209.5,3.44208893]
[1768861275091,0.88316618,3210.4,3209.5,3.44208893]
[1768861275293,0.00268015,3210.5,3209.5,3.44208893]
[1768861275494,0.8831203,3210.4,3209.5,3.44208893]
[1768861275694,0.00268015,3210.5,3209.5,3.44208893]
[1768861275897,0.88311885,3210.4,3209.5,3.44208893]
[1768861276097,0.00268015,3210.5,3209.5,3.44208893]
[1768861276299,0.88311885,3210.4,3209.5,3.44208893]
[1768861276504,0.00268015,3210.5,3209.5,3.44208893]
[1768861276706,0.88307978,3210.4,3209.5,3.44208893]
[1768861276898,0.00268015,3210.5,3209.5,3.44208893]
[1768861277097,0.88308588,3210.4,3209.5,3.44208893]
[1768861277297,0.00268015,3210.5,3209.5,3.44208893]
[1768861277497,0.88306746,3210.4,3209.5,3.44208893]
[1768861277701,0.00268015,3210.5,3209.5,3.44208893]
[1768861277902,0.88306834,3210.4,3209.5,3.44208893]
[1768861278204,0.00268015,3210.5,3209.5,3.44208893]
[1768861286406,0.88423231,3210.4,3209.5,3.44208893]
[1768861286609,0.00268015,3210.5,3209.5,3.44208893]
[1768861286809,0.88423231,3210.4,3209.5,3.44208893]
[1768861287010,0.00268015,3210.5,3209.5,3.44208893]
[1768861287211,0.88423216,3210.4,3209.5,3.44208893]
[1768861287510,0.00268015,3210.5,3209.5,3.44208893]
[1768861287704,0.88436754,3210.4,3209.5,3.44208893]
[1768861288014,0.00268015,3210.5,3209.5,3.44208893]
[1768861288312,0.88436809,3210.4,3209.5,3.44208893]
[1768861288512,0.00268015,3210.5,3209.5,3.44208893]